fUSD/lending_fUSD_20251123
["ID","MTS","AMOUNT","RATE_DAILY","PERIOD"]
[394770147,1763932285416,-652.55,0.00040547,8]
[394770148,1763932285425,-500.0,0.00040547,8]
[394770149,1763932285435,-1305.1,0.00040547,8]
[394770150,1763932285445,-572.14,0.00040547,8]
[394770151,1763932285456,-2200.0,0.00040548,120]
[394770152,1763932285466,-701.46,0.00040566,2]
[394770153,1763932285476,-701.46,0.00040566,2]
[394770154,1763932285487,-699.72,0.00040566,2]
[394770155,1763932285497,-5000.0,0.00040568,120]
[394770156,1763932285507,-1000.0,0.000406,7]
[394770157,1763932285517,-184.77752291,0.00040605,2]
[394770158,1763932285527,-506.1532587,0.0004065,30]
[394770159,1763932285537,-1000.0,0.00040655,7]
[394770160,1763932285547,-1444.0,0.00040658,120]
[394770161,1763932285557,-188.0,0.00040673,7]
[394770162,1763932285566,-537.85405749,0.00040674,2]
[394770163,1763932285576,-272.49808788,0.00040684,2]
[394770164,1763932285586,-500.0,0.00040684,2]
[394770165,1763932285596,-500.0,0.00040684,2]
[394770166,1763932285606,-2675.0,0.00040684,2]
[394770167,1763932285616,-500.0,0.00040684,2]
[394770168,1763932285626,-1103.0,0.00040707,20]
[394770169,1763932285636,-150.0,0.0004073,30]
[394770170,1763932285645,-150.0,0.0004073,30]
[394770171,1763932285655,-150.0,0.0004073,30]
[394770172,1763932285665,-150.0,0.0004073,30]
[394770173,1763932285675,-150.0,0.0004073,30]
[394770174,1763932285685,-150.0,0.0004073,30]
[394770175,1763932285695,-150.0,0.0004073,30]
[394770176,1763932285704,-150.0,0.0004073,30]
[394770177,1763932285714,-150.0,0.0004073,30]
[394770178,1763932285724,-150.0,0.0004073,30]
[394770179,1763932285733,-150.0,0.0004073,30]
[394770180,1763932285743,-150.0,0.0004073,30]
[394770181,1763932285753,-150.0,0.0004073,30]
[394770182,1763932285762,-150.0,0.0004073,30]
[394770183,1763932285772,-150.0,0.0004073,30]
[394770184,1763932285782,-150.0,0.0004073,30]
[394770185,1763932285792,-191.39574579,0.0004073,30]
[394770186,1763932285802,-1283.93,0.00040781,30]
[394770187,1763932285811,-1283.93,0.00040781,30]
[394770188,1763932285821,-1854.0,0.00040814,2]
[394770189,1763932285831,-500.0,0.0004082,8]
[394770190,1763932285841,-500.0,0.00040821,2]
[394770191,1763932285851,-500.0,0.00040821,2]
[394770192,1763932285861,-2675.0,0.00040821,2]
[394770193,1763932285871,-500.0,0.00040821,2]
[394770194,1763932286056,-600.0,0.00040821,30]
[394770195,1763932286066,-500.0,0.00040821,8]
[394770196,1763932286076,-500.0,0.00040821,8]
[394770197,1763932286085,-463.10582865,0.00040821,8]
[394770198,1763932286094,-500.0,0.00040821,8]
[394770199,1763932286103,-500.0,0.00040821,8]
[394770200,1763932286112,-500.0,0.00040821,8]
[394770201,1763932286122,-500.0,0.00040821,8]
[394770202,1763932286131,-500.0,0.00040821,8]
[394770203,1763932286140,-500.0,0.00040821,8]
[394770204,1763932286150,-500.0,0.00040821,8]
[394770205,1763932286159,-500.0,0.00040821,8]
[394770206,1763932286168,-150.04303427,0.00040821,8]
[394770207,1763932286177,-500.0,0.00040821,8]
[394770208,1763932286187,-500.0,0.00040821,8]
[394770209,1763932286196,-500.0,0.00040821,8]
[394770210,1763932286205,-500.0,0.00040821,8]
[394770211,1763932286214,-500.0,0.00040821,8]
[394770212,1763932286224,-599.38,0.00040821,8]
[394770213,1763932286233,-500.0,0.00040821,8]
[394770214,1763932286242,-578.82354571,0.00040821,8]
[394770215,1763932286251,-500.0,0.00040821,8]
[394770216,1763932286260,-500.0,0.00040821,8]
[394770217,1763932286269,-500.0,0.00040821,8]
[394770218,1763932286277,-500.0,0.00040821,8]
[394770219,1763932286286,-500.0,0.00040821,8]
[394770220,1763932286296,-500.0,0.00040821,8]
[394770221,1763932286305,-500.0,0.00040821,8]
[394770222,1763932286314,-443.51473298,0.00040821,8]
[394770223,1763932286324,-500.0,0.00040821,8]
[394770224,1763932286333,-500.0,0.00040821,8]
[394770225,1763932286342,-500.0,0.00040821,8]
[394770226,1763932286352,-501.37,0.00040821,8]
[394770227,1763932286361,-384.44908088,0.00040821,8]
[394770228,1763932286370,-500.0,0.00040821,8]
[394770229,1763932286380,-746.94,0.00040821,8]
[394770230,1763932286389,-500.0,0.00040821,8]
[394770231,1763932286398,-500.0,0.00040821,8]
[394770232,1763932286409,-500.0,0.00040821,8]
[394770233,1763932286422,-500.0,0.00040821,8]
[394770234,1763932286431,-500.0,0.00040821,8]
[394770235,1763932286440,-500.0,0.00040821,8]
[394770236,1763932286449,-500.0,0.00040821,8]
[394770237,1763932286460,-643.96,0.00040821,8]
[394770238,1763932286470,-500.0,0.00040821,8]
[394770239,1763932286479,-500.0,0.00040821,8]
[394770240,1763932286491,-500.0,0.00040821,8]
[394770241,1763932286501,-500.0,0.00040821,8]
[394770242,1763932286510,-500.0,0.00040821,8]
[394770243,1763932286521,-500.0,0.00040821,8]
[394770244,1763932286530,-500.0,0.00040821,8]
[394770245,1763932286539,-500.0,0.00040821,8]
[394770246,1763932286549,-500.0,0.00040821,8]
[394770247,1763932286559,-500.0,0.00040821,8]
[394770248,1763932286568,-592.63436341,0.00040821,8]
[394770249,1763932286577,-500.0,0.00040821,8]
[394770250,1763932286587,-500.0,0.00040821,8]
[394770252,1763932286596,-500.0,0.00040821,8]
[394770253,1763932286606,-500.0,0.00040821,8]
[394770254,1763932286616,-500.0,0.00040821,8]
[394770255,1763932286625,-500.0,0.00040821,8]
[394770256,1763932286634,-500.0,0.00040821,8]
[394770257,1763932286643,-500.0,0.00040821,8]
[394770258,1763932286652,-500.0,0.00040821,8]
[394770259,1763932286661,-680.5,0.00040821,8]
[394770260,1763932286670,-500.0,0.00040821,8]
[394770261,1763932286680,-500.0,0.00040821,8]
[394770262,1763932286689,-582.19,0.00040821,8]
[394770263,1763932286698,-395.91021597,0.00040821,8]
[394770264,1763932286707,-282.20581823,0.00040821,8]
[394770265,1763932286716,-500.0,0.00040821,8]
[394770266,1763932286725,-577.38,0.00040821,8]
[394770267,1763932286734,-500.0,0.00040821,8]
[394770268,1763932286743,-500.0,0.00040821,8]
[394770269,1763932286753,-500.0,0.00040821,8]
[394770270,1763932286762,-500.0,0.00040821,8]
[394770271,1763932286771,-500.0,0.00040821,8]
[394770272,1763932286780,-624.13448892,0.00040821,8]
[394770273,1763932286789,-559.32,0.00040821,8]
[394770274,1763932286798,-500.0,0.00040821,8]
[394770275,1763932286807,-500.0,0.00040821,8]
[394770276,1763932286816,-500.0,0.00040821,8]
[394770277,1763932286825,-500.0,0.00040821,8]
[394770278,1763932286834,-737.96,0.00040821,8]
[394770279,1763932286843,-500.0,0.00040821,8]
[394770280,1763932286852,-500.0,0.00040821,8]
[394770281,1763932286861,-500.0,0.00040821,8]
[394770282,1763932286870,-500.0,0.00040821,8]
[394770283,1763932286880,-500.0,0.00040821,8]
[394770284,1763932286889,-500.0,0.00040821,8]
[394770285,1763932286898,-520.80592271,0.00040821,8]
[394770286,1763932286907,-627.94,0.00040821,8]
[394770287,1763932286916,-500.0,0.00040821,8]
[394770288,1763932286926,-500.0,0.00040821,8]
[394770289,1763932286935,-500.0,0.00040821,8]
[394770290,1763932286944,-500.0,0.00040821,8]
[394770291,1763932286953,-500.0,0.00040821,8]
[394770292,1763932286962,-500.0,0.00040821,8]
[394770293,1763932286971,-500.0,0.00040821,8]
[394770294,1763932286981,-500.0,0.00040821,8]
[394770295,1763932286991,-627.69,0.00040821,8]
[394770296,1763932287001,-500.0,0.00040821,8]
[394770297,1763932287012,-500.0,0.00040821,8]
[394770298,1763932287024,-500.0,0.00040821,8]
[394770299,1763932287033,-500.0,0.00040821,8]
[394770300,1763932287043,-500.0,0.00040821,8]
[394770301,1763932287052,-616.6,0.00040821,8]
[394770302,1763932287061,-500.0,0.00040821,8]
[394770303,1763932287071,-500.0,0.00040821,8]
[394770304,1763932287084,-500.0,0.00040821,8]
[394770305,1763932287094,-500.0,0.00040821,8]
[394770306,1763932287103,-500.0,0.00040821,8]
[394770307,1763932287112,-500.0,0.00040821,8]
[394770308,1763932287121,-500.0,0.00040821,8]
[394770309,1763932287131,-500.0,0.00040821,8]
[394770310,1763932287140,-685.48,0.00040821,8]
[394770311,1763932287149,-500.0,0.00040821,8]
[394770312,1763932287159,-500.0,0.00040821,8]
[394770313,1763932287167,-151.0,0.00040821,120]
[394770314,1763932287177,-151.0,0.00040821,120]
[394770315,1763932287186,-500.0,0.00040821,8]
[394770316,1763932287195,-500.0,0.00040821,8]
[394770317,1763932287204,-500.0,0.00040821,8]
[394770318,1763932287213,-500.0,0.00040821,8]
[394770319,1763932287223,-500.0,0.00040821,8]
[394770320,1763932287232,-500.0,0.00040821,8]
[394770321,1763932287242,-629.45,0.00040821,8]
[394770322,1763932287251,-485.56288652,0.00040821,8]
[394770323,1763932287260,-500.0,0.00040821,8]
[394770324,1763932287271,-500.0,0.00040821,8]
[394770325,1763932287280,-230.49126255,0.00040821,8]
[394770326,1763932287289,-500.0,0.00040821,8]
[394770327,1763932287298,-500.0,0.00040821,8]
[394770328,1763932287307,-500.0,0.00040821,8]
[394770329,1763932287317,-152.18562177,0.00040821,8]
[394770330,1763932287327,-500.0,0.00040821,8]
[394770331,1763932287337,-500.0,0.00040821,8]
[394770332,1763932287347,-500.0,0.00040821,8]
[394770333,1763932287357,-500.0,0.00040821,8]
[394770334,1763932287367,-500.0,0.00040821,8]
[394770335,1763932287378,-500.0,0.00040821,8]
[394770336,1763932287388,-500.0,0.00040821,8]
[394770337,1763932287397,-500.0,0.00040821,8]
[394770338,1763932287407,-758.5,0.00040821,8]
[394770339,1763932287422,-500.0,0.00040821,8]
[394770340,1763932287431,-500.0,0.00040821,8]
[394770341,1763932287440,-579.46,0.00040821,8]
[394770342,1763932287450,-500.0,0.00040821,8]
[394770343,1763932287461,-500.0,0.00040821,8]
[394770344,1763932287471,-518.19,0.00040821,8]
[394770345,1763932287481,-674.67,0.00040821,8]
[394770346,1763932287491,-500.0,0.00040821,8]
[394770347,1763932287501,-500.0,0.00040821,8]
[394770348,1763932287509,-173.22460043,0.00040821,8]
[394770349,1763932287519,-500.0,0.00040821,8]
[394770350,1763932287529,-500.0,0.00040821,8]
[394770351,1763932287539,-500.0,0.00040821,8]
[394770352,1763932287549,-500.0,0.00040821,8]
[394770353,1763932287559,-500.0,0.00040821,8]
[394770354,1763932287568,-500.0,0.00040821,8]
[394770355,1763932287579,-571.81,0.00040821,8]
[394770356,1763932287588,-500.0,0.00040821,8]
[394770357,1763932287598,-500.0,0.00040821,8]
[394770358,1763932287607,-500.0,0.00040821,8]
[394770359,1763932287617,-844.11,0.00040821,8]
[394770360,1763932287627,-500.0,0.00040821,8]
[394770361,1763932287636,-801.77,0.00040821,8]
[394770362,1763932287646,-899.53,0.00040821,8]
[394770363,1763932287657,-500.0,0.00040821,8]
[394770364,1763932287666,-558.66,0.00040821,8]
[394770365,1763932287675,-500.0,0.00040821,8]
[394770366,1763932287685,-500.0,0.00040821,8]
[394770367,1763932287695,-500.0,0.00040821,8]
[394770368,1763932287704,-571.31,0.00040821,8]
[394770369,1763932287713,-500.0,0.00040821,8]
[394770370,1763932287722,-1189.16,0.00040821,8]
[394770371,1763932287732,-1613.36,0.00040821,8]
[394770372,1763932287741,-500.0,0.00040821,8]
[394770373,1763932287750,-500.0,0.00040821,8]
[394770374,1763932287759,-569.95,0.00040821,8]
[394770375,1763932287768,-500.0,0.00040821,8]
[394770376,1763932287778,-647.76792047,0.00040821,8]
[394770377,1763932287788,-517.59,0.00040821,8]
[394770378,1763932287797,-578.31,0.00040821,8]
[394770379,1763932287806,-708.39,0.00040821,8]
[394770380,1763932287816,-500.0,0.00040821,8]
[394770381,1763932287825,-729.76,0.00040821,8]
[394770382,1763932287835,-1374.01,0.00040821,8]
[394770383,1763932287845,-500.0,0.00040821,8]
[394770384,1763932287854,-500.0,0.00040821,8]
[394770385,1763932287863,-500.0,0.00040821,8]
[394770386,1763932287872,-500.0,0.00040821,8]
[394770387,1763932287882,-597.13,0.00040821,8]
[394770388,1763932287891,-613.87,0.00040821,8]
[394770389,1763932287901,-261.4038353,0.00040821,8]
[394770390,1763932287910,-500.0,0.00040821,8]
[394770391,1763932287920,-500.0,0.00040821,8]
[394770392,1763932287929,-500.0,0.00040821,8]
[394770393,1763932287938,-581.8,0.00040821,8]
[394770394,1763932287947,-500.0,0.00040821,8]
[394770395,1763932287956,-645.60091769,0.00040821,8]
[394770396,1763932287966,-500.0,0.00040821,8]
[394770397,1763932287976,-500.0,0.00040821,8]
[394770398,1763932287985,-151.0,0.00040821,30]
[394770399,1763932287995,-151.0,0.00040821,30]
[394770400,1763932288004,-1247.7,0.00040821,8]
[394770401,1763932288014,-500.0,0.00040821,8]
[394770402,1763932288023,-500.0,0.00040821,8]
[394770403,1763932288033,-151.0,0.00040821,120]
[394770404,1763932288043,-151.0,0.00040821,30]
[394770405,1763932288052,-151.0,0.00040821,120]
[394770406,1763932288061,-500.0,0.00040821,8]
[394770407,1763932288071,-151.0,0.00040821,120]
[394770408,1763932288080,-500.0,0.00040821,8]
[394770409,1763932288089,-500.0,0.00040821,8]
[394770410,1763932288098,-669.35,0.00040821,8]
[394770411,1763932288107,-500.0,0.00040821,8]
[394770412,1763932288117,-500.0,0.00040821,8]
[394770413,1763932288127,-500.0,0.00040821,8]
[394770414,1763932288136,-575.78,0.00040821,8]
[394770415,1763932288146,-1007.92,0.00040821,8]
[394770416,1763932288155,-500.0,0.00040821,8]
[394770417,1763932288165,-500.0,0.00040821,8]
[394770418,1763932288173,-611.29,0.00040821,8]
[394770419,1763932288183,-500.0,0.00040821,8]
[394770420,1763932288192,-500.0,0.00040821,8]
[394770421,1763932288201,-500.0,0.00040821,8]
[394770422,1763932288211,-412.70641606,0.00040821,8]
[394770423,1763932288220,-500.0,0.00040821,8]
[394770424,1763932288230,-626.96,0.00040821,8]
[394770425,1763932288239,-711.9,0.00040821,8]
[394770426,1763932288249,-500.0,0.00040821,2]
[394770427,1763932288258,-500.0,0.00040821,8]
[394770428,1763932288268,-500.0,0.00040821,8]
[394770429,1763932288277,-4779.95,0.00040821,8]
[394770430,1763932288287,-500.0,0.00040821,8]
[394770431,1763932288296,-500.0,0.00040821,8]
[394770432,1763932288306,-1000.0,0.00040821,8]
[394770433,1763932288315,-500.0,0.00040821,8]
[394770434,1763932288324,-500.0,0.00040821,8]
[394770435,1763932288334,-500.0,0.00040821,8]
[394770436,1763932288343,-4312.11,0.00040821,8]
[394770437,1763932288353,-356.40858937,0.00040821,8]
[394770438,1763932288362,-500.0,0.00040821,8]
[394770439,1763932288372,-558.0,0.00040821,8]
[394770440,1763932288381,-525.42,0.00040821,8]
[394770441,1763932288391,-500.0,0.00040821,2]
[394770442,1763932288400,-314.09377928,0.00040821,8]
[394770443,1763932288409,-500.0,0.00040821,8]
[394770444,1763932288423,-500.0,0.00040821,8]
[394770445,1763932288432,-1243.08,0.00040821,8]
[394770446,1763932288442,-945.62,0.00040821,8]
[394770447,1763932288452,-500.0,0.00040821,8]
[394770448,1763932288463,-500.0,0.00040821,8]
[394770449,1763932288472,-500.0,0.00040821,8]
[394770450,1763932288483,-500.0,0.00040821,8]
[394770451,1763932288491,-516.04,0.00040821,8]
[394770452,1763932288501,-500.0,0.00040821,8]
[394770453,1763932288510,-500.0,0.00040821,8]
[394770454,1763932288519,-500.0,0.00040821,8]
[394770455,1763932288529,-500.0,0.00040821,8]
[394770456,1763932288538,-573.47,0.00040821,8]
[394770457,1763932288548,-500.0,0.00040821,8]
[394770458,1763932288557,-562.69,0.00040821,8]
[394770459,1763932288567,-225.106639,0.00040821,120]
[394770460,1763932288575,-652.55,0.00040821,8]
[394770461,1763932288585,-500.0,0.00040821,8]
[394770462,1763932288594,-151.0,0.00040821,120]
[394770463,1763932288604,-1305.1,0.00040821,8]
[394770464,1763932288613,-572.14,0.00040821,8]
[394770465,1763932288622,-151.0,0.00040821,120]
[394770466,1763932288631,-151.0,0.00040821,120]
[394770467,1763932288641,-663.49887302,0.00040873,13]
[394770468,1763932288650,-663.49887293,0.00040873,13]
[394770469,1763932288659,-663.49887293,0.00040873,13]
[394770470,1763932288669,-663.49887293,0.00040873,13]
[394770471,1763932288678,-663.49887293,0.00040873,13]
[394770472,1763932288688,-663.49887293,0.00040873,13]
[394770473,1763932288697,-663.49887293,0.00040873,13]
[394770474,1763932288708,-663.49887293,0.00040873,13]
[394770475,1763932288718,-663.49887293,0.00040873,13]
[394770476,1763932288727,-663.49887293,0.00040873,13]
[394770477,1763932288736,-663.49887293,0.00040873,13]
[394770478,1763932288745,-663.49887293,0.00040873,13]
[394770479,1763932288754,-663.49887293,0.00040873,13]
[394770480,1763932288763,-663.49887293,0.00040873,13]
[394770481,1763932288772,-419.28093688,0.00040873,120]
[394770482,1763932288781,-350.98859482,0.00040873,120]
[394770483,1763932288791,-327.64907997,0.000409,31]
[394770484,1763932288801,-162.87955386,0.000409,120]
[394770485,1763932288810,-162.87955386,0.000409,120]
[394770486,1763932288819,-162.87955386,0.000409,120]
[394770487,1763932288828,-162.87955386,0.000409,120]
[394770488,1763932288837,-162.87955386,0.000409,120]
[394770489,1763932288846,-162.87955386,0.000409,120]
[394770490,1763932288856,-162.87955386,0.000409,120]
[394770491,1763932288865,-162.87,0.000409,120]
[394770492,1763932288875,-152.02091693,0.000409,120]
[394770493,1763932288884,-152.02091693,0.000409,120]
[394770494,1763932288893,-152.02091693,0.000409,120]
[394770495,1763932288902,-152.02091693,0.000409,120]
[394770496,1763932288911,-152.02091693,0.000409,120]
[394770497,1763932288921,-152.02091693,0.000409,120]
[394770498,1763932288930,-152.02091693,0.000409,120]
[394770499,1763932288939,-152.02091693,0.000409,120]
[394770500,1763932288948,-152.02091693,0.000409,120]
[394770501,1763932288957,-152.02091693,0.000409,120]
[394770502,1763932288967,-152.02091693,0.000409,120]
[394770503,1763932288976,-152.02091693,0.000409,120]
[394770504,1763932288985,-152.02091693,0.000409,120]
[394770505,1763932288995,-152.02091693,0.000409,120]
[394770506,1763932289004,-152.02091693,0.000409,120]
[394770507,1763932289014,-152.02091693,0.000409,120]
[394770508,1763932289024,-152.02091693,0.000409,120]
[394770509,1763932289034,-152.02091693,0.000409,120]
[394770510,1763932289043,-152.02091693,0.000409,120]
[394770511,1763932289052,-152.02,0.000409,120]
[394770512,1763932289062,-158.46898805,0.000409,120]
[394770513,1763932289072,-158.46898805,0.000409,120]
[394770514,1763932289082,-158.46898805,0.000409,120]
[394770515,1763932289092,-158.46,0.000409,120]
[394770516,1763932289101,-164.33820983,0.000409,120]
[394770517,1763932289111,-164.33820983,0.000409,120]
[394770518,1763932289120,-164.33820983,0.000409,120]
[394770519,1763932289130,-164.33820983,0.000409,120]
[394770520,1763932289140,-164.33820983,0.000409,120]
[394770521,1763932289150,-164.33820983,0.000409,120]
[394770522,1763932289159,-164.33820983,0.000409,120]
[394770523,1763932289168,-164.33820983,0.000409,120]
[394770524,1763932289178,-164.33,0.000409,120]
[394770525,1763932289187,-203.80844424,0.000409,120]
[394770526,1763932289196,-203.8,0.000409,120]
[394770527,1763932289206,-158.51767885,0.000409,120]
[394770528,1763932289215,-158.51767885,0.000409,120]
[394770529,1763932289224,-158.51767885,0.000409,120]
[394770530,1763932289233,-158.51767885,0.000409,120]
[394770531,1763932289243,-158.51767885,0.000409,120]
[394770532,1763932289252,-158.51,0.000409,120]
[394770533,1763932289260,-192.43472027,0.000409,2]
[394770534,1763932289270,-162.9711702,0.000409,15]
[394770535,1763932289278,-537.85405749,0.000409,2]
[394770536,1763932289287,-184.77752291,0.000409,2]
[394770537,1763932289296,-1308.76196163,0.000409,15]
[394770538,1763932289305,-338.09849254,0.000409,28]
[394770539,1763932289314,-263.33229381,0.000409,8]
[394770540,1763932289323,-1215.74815715,0.000409,2]
[394770541,1763932289331,-188.0,0.0004093,120]
[394770542,1763932289340,-2303.04355,0.0004094,6]
[394770543,1763932289349,-607.36042898,0.00040958,2]
[394770544,1763932289358,-500.0,0.00040958,2]
[394770545,1763932289367,-2675.0,0.00040958,2]
[394770546,1763932289376,-500.0,0.00040958,2]
[394770547,1763932289385,-500.0,0.00040959,13]
[394770548,1763932289394,-150.0,0.00040976,120]
[394770549,1763932289404,-356.63481981,0.00040989,8]
[394770550,1763932289416,-1925.27301309,0.00040999,30]
[394770551,1763932289430,-292.78050892,0.00040999,8]
[394770552,1763932289440,-500.0,0.00040999,7]
[394770553,1763932289449,-500.0,0.00040999,7]
[394770554,1763932289459,-500.0,0.00040999,7]
[394770555,1763932289468,-50000.0,0.00041,41]
[394770556,1763932289477,-782997.93279164,0.00041,2]
[394770557,1763932289981,-928703.85072836,0.00041,2]
[394770558,1763932290364,-400.0,0.00034996,2]
[394770559,1763932290375,-5740.81274604,0.00034996,2]
[394770560,1763932290384,-501.77817234,0.00038356,8]
[394770561,1763932290394,-500.0,0.00038356,8]
[394770562,1763932290403,-500.0,0.00038356,8]
[394770563,1763932290414,-151.0,0.0003863,120]
[394770564,1763932290424,-500.0,0.0003863,8]
[394770565,1763932290434,-151.0,0.0003863,120]
[394770566,1763932290443,-151.0,0.0003863,120]
[394770567,1763932290454,-500.0,0.00038904,8]
[394770568,1763932290464,-151.0,0.00038929,120]
[394770569,1763932290473,-151.0,0.00038929,120]
[394770570,1763932290482,-701.46,0.00039607,2]
[394770571,1763932290494,-238.131714,0.00039726,120]
[394770572,1763932290504,-151.0,0.00039726,120]
[394770573,1763932290513,-551.04,0.00040192,2]
[394770574,1763932290522,-150.0,0.00040192,2]
[394770575,1763932290531,-177.6,0.00040192,2]
[394770576,1763932290541,-169.71,0.00040192,2]
[394770577,1763932290550,-150.0,0.00040192,2]
[394770578,1763932290559,-417.4,0.00040192,2]
[394770579,1763932290569,-150.0,0.00040192,2]
[394770580,1763932290579,-151.0,0.00040273,120]
[394770581,1763932290588,-1211.3,0.00040292,2]
[394770582,1763932290597,-151.0,0.00040821,120]
[394770583,1763932290606,-493336.2125513,0.00041,2]
[394770584,1763932290627,-151.0,0.00038929,120]
[394770585,1763932290636,-1531.35269829,0.00041,2]
[394770586,1763932334966,500.0,0.00017,30]
[394770587,1763932335372,500.0,0.00017,30]
[394770588,1763932338062,500.0,0.00017,30]
[394770589,1763932338378,500.0,0.000165,30]
[394770590,1763932345262,500.0,0.00017,30]
[394770591,1763932516274,473.78,0.00013699,2]
[394770592,1763932646408,500.0,0.00017,30]
[394770593,1763932813649,-340.0,0.00020187,2]
[394770594,1763933110458,1187.62710151,0.000154,2]
[394770595,1763933110482,271.92525703,0.000154,2]
[394770597,1763933222119,765.1419846,0.00015,2]
[394770598,1763933222345,-299.04307844,0.000162,5]
[394770599,1763933226465,-155.76600737,0.000162,5]
[394770600,1763933230488,-155.76600741,0.000162,5]
[394770601,1763933232753,-195.0,0.000162,5]
[394770602,1763933234317,-195.0,0.000162,5]
[394770603,1763933235869,-190.6358117,0.000162,5]
[394770604,1763933238365,-209.3641883,0.000162,5]
[394770668,1763933432001,-6458.83480773,0.000162,5]
[394770670,1763933432011,-1269.02449335,0.000162,5]
[394770672,1763933432021,-300.51454079,0.000164,2]
[394770674,1763933432029,-250.0,0.000166,2]
[394770675,1763933432038,-2500.0,0.000166,2]
[394770676,1763933432048,-300.0,0.00016999,2]
[394770677,1763933432058,-1200.0,0.00016999,2]
[394770678,1763933432067,-550.0,0.00016999,2]
[394770679,1763933432076,-119449.5702631,0.00017,2]
[394770680,1763933432085,-250.0,0.00017225,2]
[394770681,1763933432094,-2500.0,0.00017225,2]
[394770682,1763933432103,-195.0,0.0001782,2]
[394770683,1763933432112,-195.0,0.0001782,2]
[394770684,1763933432121,-250.0,0.0001782,2]
[394770685,1763933432130,-2500.0,0.0001782,2]
[394770686,1763933432139,-207.26354482,0.0001782,2]
[394770687,1763933432148,-300.0,0.0001782,2]
[394770688,1763933432156,-150.10213981,0.0001782,2]
[394770689,1763933432166,-935.0,0.00018104,2]
[394770690,1763933432174,-420.0,0.00018567,2]
[394770691,1763933432183,-1680.0,0.00018659,2]
[394770692,1763933432192,-194.29394958,0.00018942,2]
[394770693,1763933432201,-43871.38675445,0.00019,2]
[394770694,1763933432211,-1124.0,0.00019277,2]
[394770695,1763933432220,-300.0,0.00019641,2]
[394770696,1763933432229,-830.0,0.00019999,2]
[394770697,1763933432238,-864.56514213,0.0002,5]
[394770698,1763933432248,-8379.05509777,0.0002,5]
[394770699,1763933432256,-1037.85154712,0.0002,2]
[394770700,1763933432265,-2844.11982945,0.0002,2]
[394770701,1763933432274,-413.8927255,0.0002,2]
[394770702,1763933432283,-12837.41450536,0.0002,2]
[394770703,1763933432291,-498.60591601,0.0002,2]
[394770704,1763933432300,-133.78,0.00020187,2]
[394770705,1763933432309,-587.0,0.00020279,2]
[394770706,1763933432318,-2351.0,0.00020481,2]
[394770707,1763933432327,-195.0,0.00020641,2]
[394770708,1763933432336,-250.0,0.00021406,2]
[394770709,1763933432345,-195.0,0.00021538,2]
[394770710,1763933432354,-4151.3469312,0.00022,2]
[394770711,1763933432364,-823.0,0.00022149,2]
[394770712,1763933432373,-195.0,0.00022206,2]
[394770713,1763933432381,-2415.23455562,0.00022481,2]
[394770714,1763933432393,-576.95099994,0.00022481,2]